[Event "15th Chennai GM Open 2025"]
[Site "Chennai"]
[Date "2025.01.03"]
[Round "3.9"]
[White "Rajarishi Karthi"]
[Black "Sammed Jaykumar, Shete"]
[Result "0-1"]
[ECO "D55"]
[WhiteElo "2131"]
[BlackElo "2379"]
[Annotator "TA"]
[PlyCount "114"]
[EventDate "2025.01.02"]
[EventType "swiss"]
[EventCountry "IND"]
[SourceTitle "playchess.com"]
[Source "ChessBase"]
[SourceQuality "1"]
[TimeControl "5400+30"]

{[%evp 23,114,31,38,31,39,17,9,9,9,18,25,0,0,-19,-22,-20,-25,-70,-66,-57,-51,-50,-64,-68,-63,-61,-73,-97,-97,-104,-103,-104,-107,-107,-91,-106,-104,-110,-83,-83,-86,-89,-77,-77,-78,-72,-66,-101,-83,-97,-98,-122,-99,-209,-139,-211,-216,-219,-227,-226,-216,-289,-295,-295,-295,-295,-293,-286,-210,-210,-210,-210,-210,-210,-210,-259,-259,-269,-269,-262,-262,-702,-672,-684,-641,-1708,-1632,-1291,-1150,-29960,-29949,-29978,-29976]} 1. d4 {[%emt 0:03:51]} Nf6 {[%emt 0:00:10]} 2. c4 {[%emt 0:00:14]} e6 {[%emt 0:00:09]} 3. Nc3 {[%emt 0:00:58]} d5 {[%emt 0:00:08]} 4. Bg5 {[%emt 0:02:13]} Nbd7 {[%emt 0:02:03]} 5. e3 {[%emt 0:02:10]} Be7 {[%emt 0:00:59]} 6. Nf3 {[%emt 0:02:08]} h6 {[%emt 0:03:15]} 7. Bh4 {[%emt 0:01:10]} O-O {[%emt 0:01:53]} 8. Rc1 {[%emt 0:01:42]} a6 {[%emt 0:01:14]} 9. cxd5 {[%emt 0:03:46]} exd5 {[%emt 0:00:04]} 10. Bd3 {[%emt 0:02:32]} b6 {[%emt 0:00:37][%cal Bb7b6,Bb6c5,Bc5d4][%mdl 32]} 11. O-O {[%emt 0:01:11]} Bb7 {[%emt 0:00:15]} 12. Qc2 {[%emt 0:00:45]} c5 {[%emt 0:02:29]} 13. dxc5 {[%emt 0:04:06]} bxc5 {[%emt 0:01:43][%cal Od5d4]} 14. Rfd1 {[%emt 0:00:53]} d4 {[%emt 0:04:58]} 15. exd4 {[%emt 0:02:56]} Bxf3 {[%emt 0:00:14]} 16. gxf3 {[%emt 0:00:17]} cxd4 {[%emt 0:00:07]} 17. Ne2 {[%emt 0:02:05]} Ne5 {[%emt 0:03:34]} 18. Bg3 {[%emt 0:04:52]} Nxf3+ {[%emt 0:12:58]} 19. Kg2 {[%emt 0:01:06]} Qd5 {[%emt 0:07:18] ( -> ...Nh4+)} 20. Qc6 {[%emt 0:01:03] And now Qxd5 would win.} Ne1+ {[%emt 0:00:09] A dynamic duo of knights.} 21. Kf1 {[%emt 0:00:54]} Nxd3 {[%emt 0:00:20]} 22. Qxd5 {[%emt 0:00:44]} Nxd5 {[%emt 0:00:04]} 23. Rxd3 {[%emt 0:00:24]} Bf6 $1 {[%emt 0:03:39]} 24. a3 {[%emt 0:00:28]} Rfd8 {[%emt 0:00:33]} 25. Nxd4 {[%emt 0:02:39]} Nb6 $1 {[%emt 0:00:53][%cal Bd5b6,Bb6c4,Bc4d2][%mdl 32]} 26. Rcd1 {[%emt 0:02:40]} Nc4 {[%emt 0:01:41]} 27. Nf5 {[%emt 0:00:29]} Rxd3 $1 {[%emt 0:05:32]} 28. Rxd3 {[%emt 0:00:18]} Bxb2 {[%emt 0:00:13]} (28... Nxb2 29. Rd6) 29. a4 {[%emt 0:00:43]} Bf6 {[%emt 0:00:42]} 30. Rd7 {[%emt 0:01:12]} Rd8 {[%emt 0:08:05]} 31. Rc7 {[%emt 0:01:33] [#]} Nd2+ $1 {[%emt 0:03:54]} 32. Kg2 {[%emt 0:01:47]} Rd5 {[%emt 0:01:37]} 33. Nd6 {[%emt 0:04:48]} Rd4 {[%emt 0:00:14]} 34. a5 {[%emt 0:02:11][%cal Oc7a7]} Rd5 {[%emt 0:05:56]} 35. Nb7 {[%emt 0:04:28]} Nb3 {[%emt 0:01:46]} 36. Rc8+ {[%emt 0:00:45]} Kh7 {[%emt 0:00:10]} 37. Bc7 {[%emt 0:02:32]} Bc3 {[%emt 0:11:37][%cal Rb3a5] Black is more active.} 38. Rd8 {[%emt 0:01:27]} (38. Bg3 $17 Bxa5 39. Ra8) 38... Rg5+ {[%emt 0:02:10]} 39. Kf1 {[%emt 0:00:20]} (39. Bg3 $17 {was necessary.}) 39... Nxa5 $19 {[%emt 0:03:56]} (39... Bxa5 40. Nxa5 Nxa5 41. Rd6 $11) 40. Nd6 {[%emt 0:01:00][%cal Od6e4] [#]} Rc5 $1 {[%emt 0:00:38]} 41. Rd7 {[%emt 0:00:39][%cal Od6e4]} Be5 {[%emt 0:00:17]} 42. Rxf7 {[%emt 0:01:50] [#]} Rxc7 $1 {[%emt 0:03:55][%mdl 512]} 43. Rxc7 {[%emt 0:00:08]} Bxd6 {[%emt 0:00:05]} 44. Ra7 {[%emt 0:00:56]} Bxh2 {[%emt 0:00:18]} 45. Rxa6 {[%emt 0:00:05]} Nb7 {[%emt 0:00:40]} 46. Kg2 {[%emt 0:00:17]} Be5 {[%emt 0:00:12]} 47. Kf3 {[%emt 0:00:18]} Bf6 {[%emt 0:00:47]} 48. Kg4 {[%emt 0:00:52]} Kg6 {[%emt 0:00:06]} 49. Rb6 {[%emt 0:00:28]} h5+ {[%emt 0:02:21]} 50. Kf4 {[%emt 0:00:12]} Nc5 {[%emt 0:00:14]} 51. f3 {[%emt 0:00:57]} Nd3+ {[%emt 0:01:08]} 52. Ke4 $2 {[%emt 0:00:11]} (52. Ke3 Nb2 53. Ke2) 52... Nf2+ {[%emt 0:00:50]} 53. Ke3 {[%emt 0:00:47]} Nh3 {[%emt 0:00:28]} 54. Ke4 {[%emt 0:00:44]} Kg5 {[%emt 0:00:55]} 55. Rb5+ {[%emt 0:01:10]} Kh4 {[%emt 0:00:14]} 56. Kf5 {[%emt 0:00:20]} Kg3 {[%emt 0:00:26]} 57. f4 {[%emt 0:00:35]} h4 {[%emt 0:00:58]} ({And not} 57... Nxf4 58. Rb3+ Kh2 59. Kxf4 $11) 0-1

[Event "15th Chennai GM Open 2025"]
[Site "Chennai"]
[Date "2025.01.03"]
[Round "3.10"]
[White "Midilesh MS"]
[Black "Shahil Dey"]
[Result "0-1"]
[ECO "D56"]
[WhiteElo "2096"]
[BlackElo "2374"]
[Annotator "TA"]
[PlyCount "90"]
[EventDate "2025.01.02"]
[EventType "swiss"]
[EventCountry "IND"]
[SourceTitle "playchess.com"]
[Source "ChessBase"]
[SourceQuality "1"]
[TimeControl "5400+30"]

{[%evp 15,90,27,32,-1,0,0,-6,-13,-7,-16,0,-15,-4,-37,-53,-54,-35,-33,-42,-30,-16,-17,-9,-22,-16,-33,-7,-88,-94,-95,-88,-462,-479,-454,-466,-450,-357,-379,-364,-375,-325,-358,-378,-380,-380,-357,-352,-367,-365,-345,-347,-400,-385,-516,-533,-500,-453,-919,-917,-855,-866,-837,-791,-5114,-5030,-1004,-9557,-29964,-29965,-29973,-29971,-29985,-29986,-29989,-29990,-29989,-29990]} 1. d4 {[%emt 0:00:16]} Nf6 {[%emt 0:06:32]} 2. c4 {[%emt 0:00:19]} c6 {[%emt 0:01:05]} 3. Nc3 {[%emt 0:00:20]} d5 {[%emt 0:00:20]} 4. Nf3 {[%emt 0:00:40]} e6 {[%emt 0:00:05]} 5. Bg5 {[%emt 0:00:31]} Be7 {[%emt 0:00:06]} 6. e3 {[%emt 0:01:32]} O-O {[%emt 0:00:05]} 7. Bd3 {[%emt 0:01:28]} h6 {[%emt 0:00:07]} 8. Bh4 {[%emt 0:01:50]} Nbd7 {[%emt 0:00:07]} 9. h3 {[%emt 0:07:54]} dxc4 {[%emt 0:00:40]} 10. Bxc4 {[%emt 0:00:12]} b5 {[%emt 0:00:25]} 11. Bd3 {[%emt 0:01:45]} Bb7 {[%emt 0:00:28]} 12. O-O {[%emt 0:01:39]} a6 {[%emt 0:00:24]} 13. Bxf6 {[%emt 0:06:04]} Bxf6 {[%emt 0:09:22]} 14. b4 {[%emt 0:18:46] [#]} c5 $1 {[%emt 0:02:10]} 15. bxc5 {[%emt 0:03:08]} Nxc5 {[%emt 0:00:03]} 16. Bc2 {[%emt 0:04:07]} Rc8 {[%emt 0:03:01]} 17. Nd2 {[%emt 0:08:00]} Nd7 {[%emt 0:07:26]} 18. Be4 {[%emt 0:09:38]} Bxe4 {[%emt 0:07:10]} 19. Ncxe4 {[%emt 0:00:15]} Be7 {[%emt 0:00:14]} 20. Qb3 {[%emt 0:07:56]} Qc7 {[%emt 0:03:12]} 21. d5 {[%emt 0:16:41]} (21. a4 $11) 21... exd5 $17 {[%emt 0:02:12]} 22. Qxd5 {[%emt 0:00:02]} Rfd8 $36 {[%emt 0:01:33][%mdl 2048] Black has strong initiative.} 23. Nf3 $2 {[%emt 0:01:29][%mdl 8192] [#] Dodges Ne5} (23. Rac1 $17 Qxc1 24. Rxc1 Rxc1+ 25. Kh2) 23... Nc5 $1 $19 {[%emt 0:01:06]} 24. Qf5 {[%emt 0:02:59] [#]} g6 $1 {[%emt 0:00:11]} 25. Nf6+ {[%emt 0:01:09]} Kh8 {[%emt 0:00:45]} ({Don't play} 25... Kg7 26. Nh5+ gxh5 27. Qxh5 $19) 26. Qe5 {[%emt 0:02:55]} Qxe5 {[%emt 0:00:05]} 27. Nxe5 {[%emt 0:00:02]} Bxf6 {[%emt 0:00:10]} 28. Nxf7+ {[%emt 0:00:03]} Kg7 {[%emt 0:00:09]} 29. Nxd8 {[%emt 0:00:04]} Bxa1 {[%emt 0:00:07]} (29... Bxd8 30. Rfd1 $17) 30. Rxa1 {[%emt 0:00:04]} Rxd8 {[%emt 0:00:08][%mdl 4096] Endgame KRN-KR} 31. Rc1 {[%emt 0:00:05]} Rd5 {[%emt 0:00:52]} 32. f3 {[%emt 0:00:23]} Nd7 {[%emt 0:01:19]} 33. Rc6 {[%emt 0:00:53]} a5 {[%emt 0:00:06]} 34. Kh2 {[%emt 0:00:08]} b4 {[%emt 0:00:20]} 35. Ra6 {[%emt 0:01:20]} Kf7 {[%emt 0:00:52]} 36. e4 {[%emt 0:00:48]} (36. Ra7 $142 Ke6 37. Ra6+ Ke7 38. e4) 36... Rb5 {[%emt 0:00:06]} 37. f4 {[%emt 0:03:01]} Nc5 {[%emt 0:00:07][%csl LRa6,LRe4]} 38. Ra7+ {[%emt 0:00:28]} Ke6 {[%emt 0:00:06][%cal Oa5a4] ...a4! is the strong threat.} 39. e5 {[%emt 0:00:34]} a4 {[%emt 0:00:14]} 40. Rg7 {[%emt 0:00:29]} b3 {[%emt 0:00:14]} 41. axb3 {[%emt 0:00:04]} axb3 {[%emt 0:00:05]} 42. Rxg6+ {[%emt 0:00:03]} Kf7 {[%emt 0:00:12]} 43. Rxh6 {[%emt 0:00:18]} b2 {[%emt 0:00:04]} 44. f5 {[%emt 0:00:20]} b1=Q {[%emt 0:00:06]} ({Not} 44... b1=B 45. e6+ Ke7 46. g4 $17) 45. e6+ {[%emt 0:00:01] [#]} Nxe6 $1 {[%emt 0:00:16]} 0-1

[Event "15th Chennai GM Open 2025"]
[Site "Chennai"]
[Date "2025.01.03"]
[Round "3.11"]
[White "Venkatesh, M.R."]
[Black "Avirat Chauhan"]
[Result "1-0"]
[ECO "B23"]
[WhiteElo "2362"]
[BlackElo "2010"]
[Annotator "TA"]
[PlyCount "117"]
[EventDate "2025.01.02"]
[EventType "swiss"]
[EventCountry "IND"]
[SourceTitle "playchess.com"]
[Source "ChessBase"]
[SourceQuality "1"]
[TimeControl "5400+30"]

{[%evp 40,117,36,20,64,50,57,43,55,37,56,58,285,182,337,343,335,347,354,360,367,370,360,357,352,323,367,322,475,405,405,403,408,398,406,364,430,421,488,465,515,515,572,564,586,586,570,572,586,586,820,804,843,861,1371,1331,1305,1268,29945,29947,9872,11534,29970,29966,29966,29966,29969,29970,29970,29970,29973,29967,29979,29978,29983,5691,29988,29989,29990,29991]} 1. e4 {[%emt 0:00:37]} c5 {[%emt 0:01:45]} 2. Nc3 {[%emt 0:01:01]} g6 {[%emt 0:01:08]} 3. d4 {[%emt 0:03:56]} cxd4 {[%emt 0:00:13]} 4. Qxd4 {[%emt 0:00:05]} Nf6 {[%emt 0:00:09]} 5. Be3 {[%emt 0:01:33]} Bg7 {[%emt 0:03:01]} 6. f3 {[%emt 0:04:47]} Nc6 {[%emt 0:00:17]} 7. Qd2 {[%emt 0:00:04]} d6 {[%emt 0:00:29]} 8. O-O-O {[%emt 0:02:09]} Be6 {[%emt 0:01:21]} 9. Nge2 {[%emt 0:01:00]} Qa5 {[%emt 0:07:15]} 10. Kb1 {[%emt 0:03:30]} Nd7 {[%emt 0:00:42]} 11. Bh6 {[%emt 0:07:09]} Bxh6 {[%emt 0:04:20]} 12. Qxh6 {[%emt 0:00:07]} Nb6 {[%emt 0:17:24]} 13. Nf4 {[%emt 0:08:07]} Bc4 {[%emt 0:07:51]} 14. Nfd5 {[%emt 0:02:53]} Bxf1 {[%emt 0:06:41]} 15. Rhxf1 {[%emt 0:12:16]} O-O-O {[%emt 0:00:43]} 16. Nxb6+ {[%emt 0:05:26]} Qxb6 {[%emt 0:00:25]} 17. Nd5 {[%emt 0:02:56]} Qa5 {[%emt 0:05:14]} 18. Qg7 {[%emt 0:05:16]} e6 {[%emt 0:00:35]} 19. Ne3 {[%emt 0:00:43]} Qe5 {[%emt 0:01:06]} 20. Qh6 {[%emt 0:01:18]} Kb8 {[%emt 0:07:57]} 21. Rfe1 {[%emt 0:03:19]} Ka8 {[%emt 0:06:58]} 22. a3 {[%emt 0:13:49]} (22. Nd5 $5) 22... Kb8 {[%emt 0:03:41]} 23. Ng4 {[%emt 0:02:26]} (23. Rd2 d5 24. Ng4 Qc7 25. exd5 exd5 26. Nf2) 23... Qc5 {[%emt 0:00:35]} 24. Qg7 {[%emt 0:00:47]} f5 {[%emt 0:12:38]} 25. Nf6 {[%emt 0:06:55]} (25. exf5 {simplifies} gxf5 26. Nf6 Ka8 27. Qh6) 25... Kc8 $2 {[%emt 0:01:14]} (25... Ka8 $14) 26. Qf7 {[%emt 0:05:03]} (26. Nxh7 Qe5 27. Qxe5 (27. Qxg6 Rdg8 $17) 27... dxe5 28. Rxd8+ Nxd8 $11) 26... Nd4 $2 {[%emt 0:04:03]} (26... e5 27. Qe6+ (27. Nxh7 Rd7 $17) 27... Kc7 28. exf5 gxf5) 27. c3 $18 {[%emt 0:00:11]} (27. Nxh7 Qxc2+ 28. Ka2 Qb3+ 29. Kb1 Ne2 $17) 27... Rhf8 {[%emt 0:00:26]} 28. Qe7 {[%emt 0:03:08]} (28. cxd4 Rxf7 29. dxc5 Rxf6 $16) (28. Qxh7 Nc6 $16) 28... Qe5 {[%emt 0:03:12]} 29. Nd7 {[%emt 0:00:19]} (29. cxd4 Qxf6 30. Rc1+ (30. Qxh7 Rf7 $16) 30... Kb8 $16) (29. Nxh7 Nc6 30. f4 (30. Qxf8 Rxf8 31. Nxf8 Qf6 $11) 30... Nxe7 $16) (29. Rxd4 Qxf6 30. Rc4+ (30. Qxh7 Kb8 $16) 30... Kb8 31. Qc7+ (31. Qxh7 Rf7 $16) 31... Ka8 $16) (29. Qxh7 Nc6 30. exf5 Qxf6 31. fxe6 Qf5+ (31... Rh8 $2 32. Qf7 $17) 32. Ka1 Rf6 $19) 29... Nc6 {[%emt 0:00:15]} 30. Qxf8 {[%emt 0:01:01]} (30. Qxh7 $2 {too greedy.} Rxd7 31. Qxg6 f4 $19 (31... Qxh2 $2 32. Qxe6 Kc7 33. exf5 $19)) 30... Rxf8 {[%emt 0:02:06]} 31. Nxe5 {[%emt 0:00:02]} dxe5 {[%emt 0:00:02]} 32. b4 {[%emt 0:01:26]} a6 {[%emt 0:00:00]} 33. a4 {[%emt 0:00:32]} b5 {[%emt 0:00:05]} (33... f4 {was necessary.} 34. Rd3 Rf7) 34. axb5 {[%emt 0:00:12]} axb5 {[%emt 0:00:04]} 35. Rd6 {[%emt 0:00:03]} Kc7 {[%emt 0:00:27]} 36. Rd3 {[%emt 0:01:43]} (36. Rxe6 Kd7 37. exf5 Rxf5 38. Rxc6 (38. g4 Rxf3 39. R1xe5 Nxe5 $11) 38... Kxc6 $16) 36... Rf7 {[%emt 0:03:09]} 37. h4 {[%emt 0:00:38]} h6 {[%emt 0:00:45]} 38. Kb2 {[%emt 0:00:46]} g5 {[%emt 0:00:08]} 39. hxg5 {[%emt 0:00:15]} hxg5 {[%emt 0:00:05]} 40. exf5 {[%emt 0:00:15]} exf5 {[%emt 0:00:07]} 41. Rd5 {[%emt 0:00:05]} Kb6 {[%emt 0:00:43]} 42. Rd6 {[%emt 0:00:14]} Kc7 {[%emt 0:00:11]} 43. Rg6 {[%emt 0:00:05]} g4 {[%emt 0:00:16]} 44. fxg4 {[%emt 0:00:04]} f4 {[%emt 0:00:06]} 45. g5 {[%emt 0:01:35]} Rh7 {[%emt 0:01:03]} 46. Kb3 {[%emt 0:01:33]} Rh2 {[%emt 0:00:21]} 47. Rg7+ {[%emt 0:01:01]} Kd6 {[%emt 0:00:28]} 48. Rd1+ {[%emt 0:00:34]} Ke6 {[%emt 0:00:11]} 49. Rg6+ {[%emt 0:00:26]} Kf5 {[%emt 0:00:05]} 50. Rxc6 {[%emt 0:00:27]} Rxg2 {[%emt 0:00:04]} 51. Re1 {[%emt 0:01:22]} Rxg5 {[%emt 0:01:10]} 52. Rc5 {[%emt 0:00:06]} Kf6 {[%emt 0:00:32]} 53. Kc2 {[%emt 0:00:12]} f3 {[%emt 0:00:24]} 54. Kd3 {[%emt 0:00:13]} Rf5 {[%emt 0:00:42]} 55. Ke3 {[%emt 0:01:04]} Kg5 {[%emt 0:00:08]} 56. Rg1+ {[%emt 0:00:09]} Kf6 {[%emt 0:00:09]} 57. Rf1 {[%emt 0:00:03]} (57. Rc6+ $142 Kf7 58. Ra1 (58. Rc7+ Kf6 $18) 58... Kg7 59. Ra7+ Rf7 60. Rxf7+ Kxf7 61. Kxf3 Ke7 62. c4 (62. Rc7+ Kf6 $18)) 57... e4 {[%emt 0:00:12]} 58. Kxe4 {[%emt 0:00:05]} Rxc5 {[%emt 0:00:07]} 59. bxc5 {[%emt 0:00:03]} 1-0

[Event "15th Chennai GM Open 2025"]
[Site "Chennai"]
[Date "2025.01.03"]
[Round "3.12"]
[White "Mrithyunjay Mahadevan"]
[Black "Kolla Bhaavan"]
[Result "0-1"]
[ECO "A06"]
[WhiteElo "2345"]
[BlackElo "1946"]
[Annotator "TA"]
[PlyCount "72"]
[EventDate "2025.01.02"]
[EventType "swiss"]
[EventCountry "IND"]
[SourceTitle "playchess.com"]
[Source "ChessBase"]
[SourceQuality "1"]
[TimeControl "5400+30"]

{[%evp 9,71,15,20,0,0,-1,0,0,0,-20,10,-10,0,-22,0,-71,-22,-63,-59,-56,-65,-68,-71,-213,-189,-240,-253,-238,-253,-247,-197,-242,-197,-210,-189,-194,-180,-201,-227,-217,-147,-258,-276,-250,-106,-275,-286,-265,-255,-832,-805,-1502,-1506,-29985,-29986,-29986,-29987,-29987,-29987,-29987,-29988,-29988,-29989,-29999]} 1. Nf3 {[%emt 0:00:02]} d5 {[%emt 0:01:09]} 2. e3 {[%emt 0:00:06]} Nf6 {[%emt 0:02:11]} 3. b3 {[%emt 0:00:06]} Bg4 {[%emt 0:01:28]} 4. h3 {[%emt 0:00:05]} Bh5 {[%emt 0:01:45]} 5. Bb2 {[%emt 0:01:27]} e6 {[%emt 0:01:45]} 6. g4 {[%emt 0:00:06]} Bg6 {[%emt 0:00:25]} 7. Ne5 {[%emt 0:00:04]} Nbd7 {[%emt 0:08:27]} 8. Nxg6 {[%emt 0:00:44] The position is equal.} hxg6 {[%emt 0:00:13]} 9. Qf3 {[%emt 0:00:04]} Bd6 {[%emt 0:07:40]} 10. Nc3 {[%emt 0:05:49]} c6 {[%emt 0:02:36]} 11. Qg2 {[%emt 0:01:20]} g5 {[%emt 0:19:14]} 12. Ne2 {[%emt 0:03:49]} (12. h4 $11 {keeps the balance.}) 12... e5 {[%emt 0:13:26]} (12... Qa5 $17) 13. a4 {[%emt 0:13:22]} Qe7 {[%emt 0:03:12]} 14. O-O-O {[%emt 0:13:10]} Ba3 {[%emt 0:07:52]} 15. d4 {[%emt 0:03:57]} exd4 {[%emt 0:03:52] Black is more active.} (15... O-O-O {simplifies} 16. Nc3 Bd6 17. Kb1 exd4 18. exd4 Nf8) 16. Nxd4 {[%emt 0:00:25] [#] Black converts the advantage convincingly.} (16. Rxd4 $17 O-O-O 17. Qg1) 16... Ne4 $1 $19 {[%emt 0:06:30]} 17. f3 {[%emt 0:02:56] [#] White is weak on the dark squares} (17. Kb1 {was necessary.}) 17... Nc3 $1 {[%emt 0:01:41] aiming for ...Bxb2+.} ({Don't go for} 17... Ng3 $2 18. Qxg3 Qxe3+ 19. Kb1 Bxb2 20. Kxb2 $18) 18. Rd3 {[%emt 0:00:33]} Qb4 {[%emt 0:01:35]} 19. Bxa3 {[%emt 0:02:21]} Qxa3+ {[%emt 0:00:47]} 20. Kd2 {[%emt 0:00:06]} Nb1+ {[%emt 0:00:40] Excellent horsemanship.} 21. Ke1 {[%emt 0:02:03]} Ne5 {[%emt 0:08:48][%cal Oe8c8]} 22. Kf2 {[%emt 0:01:29]} O-O-O {[%emt 0:03:17][%cal Oa3c1]} ({Resist} 22... Nxd3+ 23. Bxd3 Nc3 24. Qg3 $15) 23. Rd1 {[%emt 0:00:47]} Nc3 {[%emt 0:00:18]} 24. Re1 {[%emt 0:00:02]} Rhe8 {[%emt 0:01:43]} 25. Kg3 {[%emt 0:00:34]} (25. h4 $17) 25... Qd6 {[%emt 0:00:48] ( -> ...Nd3+)} 26. Nf5 {[%emt 0:01:34]} Qf6 {[%emt 0:01:00]} (26... Qc7 $19 {and Black stays clearly on top.} 27. Kf2 g6) 27. Qd2 {[%emt 0:06:38] Repels Nd3} (27. Qf2 $17) 27... g6 {[%emt 0:00:59]} 28. Qxc3 {[%emt 0:01:06][%cal Of3f4] f4! would now be deadly.} gxf5 {[%emt 0:00:05]} 29. Bd3 $2 {[%emt 0:06:44]} (29. Be2) 29... fxg4 {[%emt 0:00:47]} 30. f4 {[%emt 0:01:19] [#]} d4 $1 {[%emt 0:00:20][%mdl 512]} 31. exd4 {[%emt 0:01:47]} (31. Qa5 dxe3) 31... Qxf4+ {[%emt 0:00:25] Black mates.} 32. Kg2 {[%emt 0:00:04]} Qf3+ {[%emt 0:00:47]} 33. Kg1 {[%emt 0:00:02]} Qg3+ {[%emt 0:00:31]} 34. Kf1 {[%emt 0:00:08]} Nxd3 {[%emt 0:00:14]} 35. cxd3 {[%emt 0:00:18]} gxh3 {[%emt 0:00:20][%csl Gh3][%cal Rg3g2]} 36. Rg1 {[%emt 0:00:26]} Qf3# {[%emt 0:00:01] Weighted Error Value: White=0.91/Black=0.13 (very precise) .  Loses game:     	White=1     	---        Mistake:       	White=5     	Black=2      Inaccurate:     	White=2     	Black=2      OK:         	White=6     	Black=9      Best:        	---       	Black=3      Strong:       	---       	Black=2} 0-1